{"text_format":"1","workbook":"xlsx","n_sheets":12,"sheets":["ТИТУЛ","РОЗПОДІЛ","НАВЧАЛЬНА РОБОТА","МЕТОД+НАУК+ОРГАН","ЗМІНИ ТА ВИСНОВКИ","метод","наук","органз","СПИСКИ","Лист2","Лист3","Лист4"],"not_rendered":{"charts":0,"images":0,"macros":1,"external_links":0,"defined_names":23,"comments":0,"pivot_tables":0},"unopened":[],"bounds":{"document_bytes":16777216,"sheet_cells":100000,"rows_first":2000,"rows_last":500,"rows_between":2000,"halvings":0,"cell_chars":16384,"cell_head_chars":4096},"cells_cut":0,"cells_raw":0,"read":"whole","date_system":"1900"}

{"sheet":"ТИТУЛ","index":0,"n_rows":36,"n_cols":14,"rows_kept":36,"cut":false,"hidden":false,"merged":[[33,5,33,6],[7,12,8,12],[7,13,8,13],[11,12,12,12],[11,13,12,13],[23,12,24,12],[23,13,24,13],[33,12,34,12],[24,0,24,6],[34,5,34,6],[32,4,32,6],[0,0,0,6],[18,0,18,6],[19,0,19,6],[23,0,23,6],[10,0,11,0],[8,1,8,5],[11,1,11,5]]}
["МІНІСТЕРСТВО ОСВІТИ І НАУКИ УКРАЇНИ                                                                                                                     ХАРКІВСЬКИЙ НАЦІОНАЛЬНИЙ ЕКОНОМІЧНИЙ УНІВЕРСИТЕТ                                      ІМЕНІ СЕМЕНА КУЗНЕЦЯ"]
[null,null,null,null,null,null,null,{"$f":"VLOOKUP(B9,СПИСКИ!$A$3:$B$9,2,FALSE)","v":201},{"$f":"VLOOKUP(H2,СПИСКИ!$D$3:$E$38,2,FALSE)","v":"Фінансів"},1,"2017 / 2018",{"$f":"IFERROR(I2,\" \")","v":"Фінансів"}]
[null,null,null,null,null,null,null,{"$f":"H2+1","v":202},{"$f":"VLOOKUP(H3,СПИСКИ!$D$3:$E$38,2,FALSE)","v":"Митної справи і фінансових послуг"},0.75,"2018/ 2019","Митної справи і фінансових послуг"]
[null,null,null,null,null,null,null,{"$f":"H3+1","v":203},{"$f":"VLOOKUP(H4,СПИСКИ!$D$3:$E$38,2,FALSE)","v":"Обліку і бізнес-консалтингу"},0.5,"2019/ 2020","Обліку і бізнес-консалтингу"]
[null,null,null,null,null,null,null,204,{"$f":"VLOOKUP(H5,СПИСКИ!$D$3:$E$38,2,FALSE)","v":"Вищої математики та економіко-математичних методів"},0.25,"2020 / 2021","Вищої математики та економіко-математичних методів"]
[null,null,null,null,null,null,null,205,{"$f":"VLOOKUP(H6,СПИСКИ!$D$3:$E$38,2,FALSE)","v":{"$error":"#N/A"}},null,"2021/2022"," "]
[null,null,null,null,null,null,null,206,{"$f":"VLOOKUP(H7,СПИСКИ!$D$3:$E$38,2,FALSE)","v":{"$error":"#N/A"}},null,"2022/2023"," "]
[null,null,null,null,null,null,null,null,null,null,"2023/2024",0,"E","Вибрати з випадаючого списку"]
["Факультет","Фінансів і обліку"]
[]
["Кафедра"]
[null,"Обліку і бізнес-консалтингу",null,null,null,null,null,null,null,null,null,null,"E","Вибрати з випадаючого списку"]
[]
[]
[]
[]
[]
[]
["ІНДИВІДУАЛЬНИЙ ПЛАН"]
["РОБОТИ ВИКЛАДАЧА ТА ЇЇ ОБЛІК"]
[]
[]
[]
[null,null,null,null,null,null,null,null,null,null,null,null,"E","Ввести інформацію "]
["(прізвище, ім'я, по батькові)"]
[]
[null,null,"Дата",null,"Дата","Ставка або її частина"]
[null,"працює з ",null,"по "]
[null,"працює з ",null,"по "]
[null,"працює з ",null,"по "]
[]
[]
["Навчальний рік","Посада","Науковий ступінь","Вчене звання","Примітка"]
["2023/2024",null," ",null,null,null,null,null,null,null,null,null,"E","Вибрати з випадаючого списку, окрім позиції \"Науковий ступінь\""]
[]
[null,null,null,null,null,null,null,null,null,null,null,null,null,"Ввести інформацію в позицію \"Науковий ступінь\""]

{"sheet":"РОЗПОДІЛ","index":1,"n_rows":31,"n_cols":8,"rows_kept":31,"cut":false,"hidden":false,"merged":[[30,0,30,4],[8,0,8,4],[24,0,24,1],[0,2,1,4],[2,1,2,4],[3,0,3,4],[4,0,4,4],[5,0,5,4],[9,0,9,4],[24,6,25,6],[24,7,25,7],[10,0,10,4],[12,0,12,4],[13,0,13,2],[14,0,14,2],[16,0,16,2],[17,0,17,2],[18,0,18,2],[15,0,15,2],[21,0,21,4],[22,0,22,4]]}
[]
[null,null,null,null,null,null,{"$f":"ТИТУЛ!E34*1548","v":0}," - загальна кількость годин"]
[]
[]
[]
[]
[]
[]
[]
[]
["РОЗПОДІЛ ЗАГАЛЬНОГО РОБОЧОГО ЧАСУ"]
[]
["Повний обсяг роботи за індивідуальним планом:"]
["За видами робіт:",null,null,"План","Факт"]
["І. Навчальна",null,null,{"$f":"'НАВЧАЛЬНА РОБОТА'!AA68","v":0},{"$f":"'НАВЧАЛЬНА РОБОТА'!AB68","v":0}]
["ІІ. Методична",null,null,{"$f":"'МЕТОД+НАУК+ОРГАН'!E18","v":0},{"$f":"'МЕТОД+НАУК+ОРГАН'!F18","v":0}]
["ІII. Наукова",null,null,{"$f":"'МЕТОД+НАУК+ОРГАН'!E30","v":0},{"$f":"'МЕТОД+НАУК+ОРГАН'!F30","v":0}]
["IV. Організаційна",null,null,{"$f":"'МЕТОД+НАУК+ОРГАН'!E39","v":0},{"$f":"'МЕТОД+НАУК+ОРГАН'!F39","v":0}]
["Загальна кількість годин",null,null,{"$f":"SUM(D15:D18)","v":0},{"$f":"SUM(E15:E18)","v":0},null,{"$f":"G2-D19","v":0},{"$f":"IF(G19=0,0,\"- відхілення від норматива\")","v":0}]
[]
[null,null,null,null,null,{"$f":"774-D19","v":774}]
[]
[{"$f":"CONCATENATE(\"Індивідуальний план склав _______________________ / \",ТИТУЛ!A24,\" /\")","v":"Індивідуальний план склав _______________________ /  /"}]
[]
["План розглянуто на засіданні кафедри",null,"__.__.2023 р. Протокол №__",null,null,null,"E","внести інформацію"]
[]
[]
[]
[]
[]
[{"$f":"CONCATENATE(\"Декан факультету________________________\",IF(ТИТУЛ!B9=СПИСКИ!A3,СПИСКИ!C3,IF(ТИТУЛ!B9=СПИСКИ!A4,СПИСКИ!C4,IF(ТИТУЛ!B9=СПИСКИ!A5,СПИСКИ!C5,IF(ТИТУЛ!B9=СПИСКИ!A6,СПИСКИ!C6,IF(ТИТУЛ!B9=СПИСКИ!A7,СПИСКИ!C7,IF(ТИТУЛ!B9=СПИСКИ!A8,СПИСКИ!C8,IF(ТИТУЛ!B9=СПИСКИ!A9,СПИСКИ!C9,0))))))))","v":"Декан факультету________________________Проноза П.В."}]

{"sheet":"НАВЧАЛЬНА РОБОТА","index":2,"n_rows":78,"n_cols":30,"rows_kept":78,"cut":false,"hidden":false,"merged":[[21,0,32,0],[34,0,49,0],[67,0,67,7],[33,0,33,7],[62,0,62,7],[63,0,63,13],[66,0,66,13],[64,0,64,7],[65,0,65,7],[50,0,61,0],[49,1,49,7],[61,1,61,7],[1,0,3,0],[1,18,2,19],[1,22,2,23],[63,14,63,27],[66,14,66,27],[1,26,2,27],[1,24,2,25],[1,20,2,21],[32,1,32,7],[1,16,2,17],[1,4,3,4],[4,0,20,0],[20,1,20,7],[1,8,2,9],[1,1,3,1],[1,2,3,2],[1,3,3,3],[1,5,3,5],[1,6,3,6],[1,14,2,15],[1,10,2,11],[1,12,2,13],[1,7,3,7]]}
["І. НАВЧАЛЬНА РОБОТА"]
["Форма навчання","№ п/п","Назва навчальних дисциплін і видів навчальної роботи","Спеціальність, факультет","Мова навчання","Курс навчання","Кількість студентів","Шифр груп (потоків)","Читання лекцій",null,"Проведення практичних (семінарських) занять",null,"Проведення лабораторних занять",null,"Проведення екзаменаційних консультацій",null,"Керівництво і прийняття курсових проектів, робіт ",null,"Керівництво навчальною                  і виробничою практикою",null,"Участь в ЕК",null,"Проведення кваліфікаційного іспита за спеціальністю/ вступних випробувань",null,"Керівництво, консультування, рецензування та проведення захисту дипломних проектів (робіт)",null,"УСЬОГО"]
[]
[null,null,null,null,null,null,null,null,"план","факт","план","факт","план","факт","план","факт","план","факт","план","факт","план","факт","план","факт","план","факт","план","факт"]
["очна (денна)",{"$f":"IF(C5=0,0,1)","v":0},null,null,null,null,null,null,null,null,null,null,null,null,null,null,null,null,null,null,null,null,null,null,null,null,{"$f":"I5+K5+M5+O5+Q5+S5+U5+W5+Y5","v":0},{"$f":"J5+L5+N5+P5+R5+T5+V5+X5+Z5","v":0}]
[null,{"$f":"IF(C6=0,0,1)","v":0},null,null,null,null,null,null,null,null,null,null,null,null,null,null,null,null,null,null,null,null,null,null,null,null,{"$f":"I6+K6+M6+O6+Q6+S6+U6+W6+Y6","v":0},{"$f":"J6+L6+N6+P6+R6+T6+V6+X6+Z6","v":0}]
[null,{"$f":"IF(C7=0,0,1)","v":0},null,null,null,null,null,null,null,null,null,null,null,null,null,null,null,null,null,null,null,null,null,null,null,null,0,0]
[null,0,null,null,null,null,null,null,null,null,null,null,null,null,null,null,null,null,null,null,null,null,null,null,null,null,0,0]
[null,0,null,null,null,null,null,null,null,null,null,null,null,null,null,null,null,null,null,null,null,null,null,null,null,null,0,0]
[null,0,null,null,null,null,null,null,null,null,null,null,null,null,null,null,null,null,null,null,null,null,null,null,null,null,0,0]
[null,0,null,null,null,null,null,null,null,null,null,null,null,null,null,null,null,null,null,null,null,null,null,null,null,null,0,0]
[null,0,null,null,null,null,null,null,null,null,null,null,null,null,null,null,null,null,null,null,null,null,null,null,null,null,0,0]
[null,0,null,null,null,null,null,null,null,null,null,null,null,null,null,null,null,null,null,null,null,null,null,null,null,null,0,0]
[null,0,null,null,null,null,null,null,null,null,null,null,null,null,null,null,null,null,null,null,null,null,null,null,null,null,0,0]
[null,0,null,null,null,null,null,null,null,null,null,null,null,null,null,null,null,null,null,null,null,null,null,null,null,null,0,0]
[null,0,null,null,null,null,null,null,null,null,null,null,null,null,null,null,null,null,null,null,null,null,null,null,null,null,0,0]
[null,0,null,null,null,null,null,null,null,null,null,null,null,null,null,null,null,null,null,null,null,null,null,null,null,null,0,0]
[null,0,null,null,null,null,null,null,null,null,null,null,null,null,null,null,null,null,null,null,null,null,null,null,null,null,0,0]
[null,0,null,null,null,null,null,null,null,null,null,null,null,null,null,null,null,null,null,null,null,null,null,null,null,null,0,0]
[null,0,null,null,null,null,null,null,null,null,null,null,null,null,null,null,null,null,null,null,null,null,null,null,null,null,0,0]
[null,"УСЬОГО очна (денна) за І семестр",null,null,null,null,null,null,{"$f":"SUM(I5:I20)","v":0},{"$f":"SUM(J5:J20)","v":0},{"$f":"SUM(K5:K20)","v":0},0,0,0,0,0,0,0,0,0,{"$f":"SUM(U5:U20)","v":0},{"$f":"SUM(V5:V20)","v":0},0,0,0,0,{"$f":"SUM(AA5:AA20)","v":0},{"$f":"SUM(AB5:AB20)","v":0}]
["заочна",{"$f":"IF(C22=0,0,1)","v":0},null,null,null,null,null,null,null,null,null,null,null,null,null,null,null,null,null,null,null,null,null,null,null,null,{"$f":"I22+K22+M22+O22+Q22+S22+U22+W22+Y22","v":0},{"$f":"J22+L22+N22+P22+R22+T22+V22+X22+Z22","v":0}]
[null,{"$f":"IF(C23=0,0,1)","v":0},null,null,null,null,null,null,null,null,null,null,null,null,null,null,null,null,null,null,null,null,null,null,null,null,{"$f":"I23+K23+M23+O23+Q23+S23+U23+W23+Y23","v":0},{"$f":"J23+L23+N23+P23+R23+T23+V23+X23+Z23","v":0}]
[null,0,null,null,null,null,null,null,null,null,null,null,null,null,null,null,null,null,null,null,null,null,null,null,null,null,0,0]
[null,0,null,null,null,null,null,null,null,null,null,null,null,null,null,null,null,null,null,null,null,null,null,null,null,null,0,0]
[null,0,null,null,null,null,null,null,null,null,null,null,null,null,null,null,null,null,null,null,null,null,null,null,null,null,0,0]
[null,{"$f":"IF(C27=0,0,1)","v":0},null,null,null,null,null,null,null,null,null,null,null,null,null,null,null,null,null,null,null,null,null,null,null,null,0,0]
[null,0,null,null,null,null,null,null,null,null,null,null,null,null,null,null,null,null,null,null,null,null,null,null,null,null,0,0]
[null,0,null,null,null,null,null,null,null,null,null,null,null,null,null,null,null,null,null,null,null,null,null,null,null,null,0,0]
[null,0,null,null,null,null,null,null,null,null,null,null,null,null,null,null,null,null,null,null,null,null,null,null,null,null,0,0]
[null,0,null,null,null,null,null,null,null,null,null,null,null,null,null,null,null,null,null,null,null,null,null,null,null,null,0,0]
[null,0,null,null,null,null,null,null,null,null,null,null,null,null,null,null,null,null,null,null,null,null,null,null,null,null,0,0]
[null,"УСЬОГО заочна за І семестр",null,null,null,null,null,null,{"$f":"SUM(I22:I32)","v":0},{"$f":"SUM(J22:J32)","v":0},0,0,0,0,0,0,0,0,0,0,{"$f":"SUM(U22:U32)","v":0},{"$f":"SUM(V22:V32)","v":0},0,0,0,0,{"$f":"SUM(AA22:AA32)","v":0},{"$f":"SUM(AB22:AB32)","v":0}]
["РАЗОМ ЗА І СЕМЕСТР",null,null,null,null,null,null,null,{"$f":"I21+I33","v":0},{"$f":"J21+J33","v":0},{"$f":"K21+K33","v":0},0,0,0,0,0,0,0,0,0,{"$f":"U21+U33","v":0},{"$f":"V21+V33","v":0},0,0,0,0,{"$f":"AA21+AA33","v":0},{"$f":"AB21+AB33","v":0}]
["очна (денна)",{"$f":"IF(C35=0,0,1)","v":0},null,null,null,null,null,null,null,null,null,null,null,null,null,null,null,null,null,null,null,null,null,null,null,null,{"$f":"I35+K35+M35+O35+Q35+S35+U35+W35+Y35","v":0},{"$f":"J35+L35+N35+P35+R35+T35+V35+X35+Z35","v":0}]
[null,{"$f":"IF(C36=0,0,1)","v":0},null,null,null,null,null,null,null,null,null,null,null,null,null,null,null,null,null,null,null,null,null,null,null,null,{"$f":"I36+K36+M36+O36+Q36+S36+U36+W36+Y36","v":0},{"$f":"J36+L36+N36+P36+R36+T36+V36+X36+Z36","v":0}]
[null,{"$f":"IF(C37=0,0,1)","v":0},null,null,null,null,null,null,null,null,null,null,null,null,null,null,null,null,null,null,null,null,null,null,null,null,0,0]
[null,0,null,null,null,null,null,null,null,null,null,null,null,null,null,null,null,null,null,null,null,null,null,null,null,null,0,0]
[null,0,null,null,null,null,null,null,null,null,null,null,null,null,null,null,null,null,null,null,null,null,null,null,null,null,0,0]
[null,0,null,null,null,null,null,null,null,null,null,null,null,null,null,null,null,null,null,null,null,null,null,null,null,null,0,0]
[null,0,null,null,null,null,null,null,null,null,null,null,null,null,null,null,null,null,null,null,null,null,null,null,null,null,0,0]
[null,0,null,null,null,null,null,null,null,null,null,null,null,null,null,null,null,null,null,null,null,null,null,null,null,null,0,0]
[null,0,null,null,null,null,null,null,null,null,null,null,null,null,null,null,null,null,null,null,null,null,null,null,null,null,0,0]
[null,0,null,null,null,null,null,null,null,null,null,null,null,null,null,null,null,null,null,null,null,null,null,null,null,null,0,0]
[null,0,null,null,null,null,null,null,null,null,null,null,null,null,null,null,null,null,null,null,null,null,null,null,null,null,0,0]
[null,0,null,null,null,null,null,null,null,null,null,null,null,null,null,null,null,null,null,null,null,null,null,null,null,null,0,0]
[null,0,null,null,null,null,null,null,null,null,null,null,null,null,null,null,null,null,null,null,null,null,null,null,null,null,0,0]
[null,0,null,null,null,null,null,null,null,null,null,null,null,null,null,null,null,null,null,null,null,null,null,null,null,null,0,0]
[null,0,null,null,null,null,null,null,null,null,null,null,null,null,null,null,null,null,null,null,null,null,null,null,null,null,0,0]
[null,"УСЬОГО очна (денна) за ІІ семестр",null,null,null,null,null,null,{"$f":"SUM(I35:I49)","v":0},0,0,0,0,0,0,0,0,0,0,0,0,0,0,0,0,0,0,0]
["заочна",{"$f":"IF(C51=0,0,1)","v":0},null,null,null,null,null,null,null,null,null,null,null,null,null,null,null,null,null,null,null,null,null,null,null,null,{"$f":"I51+K51+M51+O51+Q51+S51+U51+W51+Y51","v":0},{"$f":"J51+L51+N51+P51+R51+T51+V51+X51+Z51","v":0}]
[null,{"$f":"IF(C52=0,0,1)","v":0},null,null,null,null,null,null,null,null,null,null,null,null,null,null,null,null,null,null,null,null,null,null,null,null,{"$f":"I52+K52+M52+O52+Q52+S52+U52+W52+Y52","v":0},{"$f":"J52+L52+N52+P52+R52+T52+V52+X52+Z52","v":0}]
[null,0,null,null,null,null,null,null,null,null,null,null,null,null,null,null,null,null,null,null,null,null,null,null,null,null,0,0]
[null,0,null,null,null,null,null,null,null,null,null,null,null,null,null,null,null,null,null,null,null,null,null,null,null,null,0,0]
[null,0,null,null,null,null,null,null,null,null,null,null,null,null,null,null,null,null,null,null,null,null,null,null,null,null,0,0]
[null,0,null,null,null,null,null,null,null,null,null,null,null,null,null,null,null,null,null,null,null,null,null,null,null,null,0,0]
[null,{"$f":"IF(C57=0,0,1)","v":0},null,null,null,null,null,null,null,null,null,null,null,null,null,null,null,null,null,null,null,null,null,null,null,null,0,0]
[null,0,null,null,null,null,null,null,null,null,null,null,null,null,null,null,null,null,null,null,null,null,null,null,null,null,0,0]
[null,0,null,null,null,null,null,null,null,null,null,null,null,null,null,null,null,null,null,null,null,null,null,null,null,null,0,0]
[null,0,null,null,null,null,null,null,null,null,null,null,null,null,null,null,null,null,null,null,null,null,null,null,null,null,0,0]
[null,0,null,null,null,null,null,null,null,null,null,null,null,null,null,null,null,null,null,null,null,null,null,null,null,null,0,0]
[null,"УСЬОГО заочна за ІІ семестр",null,null,null,null,null,null,{"$f":"SUM(I51:I61)","v":0},{"$f":"SUM(J51:J61)","v":0},0,0,0,0,0,0,0,0,0,0,0,0,0,0,0,0,{"$f":"SUM(AA51:AA61)","v":0},{"$f":"SUM(AB51:AB61)","v":0}]
["РАЗОМ ЗА ІІ СЕМЕСТР",null,null,null,null,null,null,null,{"$f":"I50+I62","v":0},{"$f":"J50+J62","v":0},0,0,0,0,0,0,0,0,0,0,0,0,0,0,0,0,{"$f":"AA62+AA50","v":0},{"$f":"AB62+AB50","v":0}]
[]
["РАЗОМ за навчальний рік очна (денна)",null,null,null,null,null,null,null,{"$f":"I21+I50","v":0},0,0,0,0,0,0,0,0,0,0,0,0,0,0,0,0,0,0,0]
["РАЗОМ за навчальний рік (заочна)",null,null,null,null,null,null,null,{"$f":"I33+I62","v":0},0,0,0,0,0,0,0,0,0,0,0,0,0,0,0,0,0,{"$f":"AA62+AA33","v":0},{"$f":"AB62+AB33","v":0}]
[]
["УСЬОГО за навчальний рік",null,null,null,null,null,null,null,{"$f":"I65+I66","v":0},{"$f":"J65+J66","v":0},0,0,0,0,0,0,0,0,0,0,0,0,0,0,0,0,{"$f":"AA66+AA65","v":0},{"$f":"AB66+AB65","v":0}]
[]
[null,{"$f":"CONCATENATE(\"Затверджено на  засіданні  кафедри \",РОЗПОДІЛ!C25)","v":"Затверджено на  засіданні  кафедри __.__.2023 р. Протокол №__"},null,null,null,null,null,null,null,null,null,null,null,null,null,null,{"$f":"CONCATENATE(\"Завідувач кафедри _______________________________\",'НАВЧАЛЬНА РОБОТА'!AD70)","v":"Завідувач кафедри _______________________________Пилипенко А.А."},null,null,null,null,null,null,null,null,null,null,null,null,{"$f":"VLOOKUP(ТИТУЛ!B12,СПИСКИ!E3:F38,2,FALSE)","v":"Пилипенко А.А."}]
[]
[null,{"$f":"CONCATENATE(\"Викладач  _______________________________ / \",ТИТУЛ!A24,\" /\")","v":"Викладач  _______________________________ /  /"},null,null,null,null,null,null,null,null,null,null,null,null,null,null,null,null,null,null,null,null,null,null,null,null,null,null,null,{"$f":"VLOOKUP(ТИТУЛ!B9,СПИСКИ!A3:C9,3,FALSE)","v":"Проноза П.В."}]
[]
[]
[]
[]
[null,null,null,null,null,null,null,null,null,null,null,null,null,null,null,null,{"$f":"CONCATENATE(\"Декан факультету_______________________________/\",IF(ТИТУЛ!B9=СПИСКИ!A3,СПИСКИ!C3,IF(ТИТУЛ!B9=СПИСКИ!A4,СПИСКИ!C4,IF(ТИТУЛ!B9=СПИСКИ!A5,СПИСКИ!C5,IF(ТИТУЛ!B9=СПИСКИ!A6,СПИСКИ!C6,IF(ТИТУЛ!B9=СПИСКИ!A7,СПИСКИ!C7,IF(ТИТУЛ!B9=СПИСКИ!A8,СПИСКИ!C8,IF(ТИТУЛ!B9=СПИСКИ!A9,СПИСКИ!C9,0))))))))","v":"Декан факультету_______________________________/Проноза П.В."}]
[null,null,null,null,null,null,null,null,null,null,null,null,null,null,null,null,{"$f":"CONCATENATE(\"Т.В.О. Декана факультету_______________________________/\",IF(ТИТУЛ!B10=СПИСКИ!A4,СПИСКИ!C4,IF(ТИТУЛ!B10=СПИСКИ!A5,СПИСКИ!C5,IF(ТИТУЛ!B10=СПИСКИ!A6,СПИСКИ!C6,IF(ТИТУЛ!B10=СПИСКИ!A7,СПИСКИ!C7,IF(ТИТУЛ!B10=СПИСКИ!A8,СПИСКИ!C8,IF(ТИТУЛ!B10=СПИСКИ!A9,СПИСКИ!C9,IF(ТИТУЛ!B10=СПИСКИ!A10,СПИСКИ!C10,0))))))))","v":"Т.В.О. Декана факультету_______________________________/"}]

{"sheet":"МЕТОД+НАУК+ОРГАН","index":3,"n_rows":40,"n_cols":7,"rows_kept":40,"cut":false,"hidden":false,"merged":[[18,1,18,4],[30,1,30,4],[39,1,39,4]]}
[null,"II.  МЕТОДИЧНА   РОБОТА"]
["№   п/п","Зміст","Підсумковий результат","Термін виконання","Плановий обсяг,                                год","Фактичний обсяг,                    год","ВВЕДІТЬ НОМЕР\nВІД 1-126"]
[{"$f":"IF(B3=0,0,1)","v":1},{"$f":"IFERROR(VLOOKUP(G3,метод!$C$14:$D$141,2,FALSE),\" \")","v":" "}]
[{"$f":"IF(B4=\" \",\" \",A3+1)","v":" "},{"$f":"IFERROR(VLOOKUP(G4,метод!$C$14:$D$128,2,FALSE),\" \")","v":" "}]
[{"$f":"IF(B5=\" \",\" \",A4+1)","v":" "},{"$f":"IFERROR(VLOOKUP(G5,метод!$C$14:$D$128,2,FALSE),\" \")","v":" "}]
[" ",{"$f":"IFERROR(VLOOKUP(G6,метод!$C$14:$D$128,2,FALSE),\" \")","v":" "}]
[" ",{"$f":"IFERROR(VLOOKUP(G7,метод!$C$14:$D$128,2,FALSE),\" \")","v":" "}]
[" ",{"$f":"IFERROR(VLOOKUP(G8,метод!$C$14:$D$128,2,FALSE),\" \")","v":" "}]
[{"$f":"IF(B9=\" \",\" \",A8+1)","v":" "},{"$f":"IFERROR(VLOOKUP(G9,метод!$C$14:$D$128,2,FALSE),\" \")","v":" "}]
[" ",{"$f":"IFERROR(VLOOKUP(G10,метод!$C$14:$D$128,2,FALSE),\" \")","v":" "}]
[" ",{"$f":"IFERROR(VLOOKUP(G11,метод!$C$14:$D$128,2,FALSE),\" \")","v":" "}]
[{"$f":"IF(B12=\" \",\" \",A11+1)","v":" "},{"$f":"IFERROR(VLOOKUP(G12,метод!$C$14:$D$128,2,FALSE),\" \")","v":" "}]
[" ",{"$f":"IFERROR(VLOOKUP(G13,метод!$C$14:$D$128,2,FALSE),\" \")","v":" "}]
[" ",{"$f":"IFERROR(VLOOKUP(G14,метод!$C$14:$D$128,2,FALSE),\" \")","v":" "}]
[" ",{"$f":"IFERROR(VLOOKUP(G15,метод!$C$14:$D$128,2,FALSE),\" \")","v":" "}]
[{"$f":"IF(B16=\" \",\" \",A15+1)","v":" "},{"$f":"IFERROR(VLOOKUP(G16,метод!$C$14:$D$128,2,FALSE),\" \")","v":" "}]
[" ",{"$f":"IFERROR(VLOOKUP(G17,метод!$C$14:$D$128,2,FALSE),\" \")","v":" "}]
[null,null,null,"Загальна кількість годин",{"$f":"SUM(E3:E17)","v":0},{"$f":"SUM(F3:F17)","v":0}]
[null,{"$f":"CONCATENATE(\"Викладач ______________      Завідувач кафедри  ____________       / \",'НАВЧАЛЬНА РОБОТА'!AD70,\" /\")","v":"Викладач ______________      Завідувач кафедри  ____________       / Пилипенко А.А. /"}]
[null,"ІІІ. НАУКОВА РОБОТА"]
["№   п/п","Зміст","Підсумковий результат ","Термін виконання","Плановий обсяг,                                год ","Фактичний обсяг,                    год ","ВВЕДІТЬ НОМЕР ВІД 201-294"]
[{"$f":"IF(B22=0,0,1)","v":1},{"$f":"IFERROR(VLOOKUP(G22,наук!$C$14:$D$103,2,FALSE),\" \")","v":" "}]
[{"$f":"IF(B23=\" \",\" \",A22+1)","v":" "},{"$f":"IFERROR(VLOOKUP(G23,наук!$C$14:$D$103,2,FALSE),\" \")","v":" "}]
[{"$f":"IF(B24=\" \",\" \",A23+1)","v":" "},{"$f":"IFERROR(VLOOKUP(G24,наук!$C$14:$D$103,2,FALSE),\" \")","v":" "}]
[" ",{"$f":"IFERROR(VLOOKUP(G25,наук!$C$14:$D$103,2,FALSE),\" \")","v":" "}]
[" ",{"$f":"IFERROR(VLOOKUP(G26,наук!$C$14:$D$103,2,FALSE),\" \")","v":" "}]
[" ",{"$f":"IFERROR(VLOOKUP(G27,наук!$C$14:$D$103,2,FALSE),\" \")","v":" "}]
[" ",{"$f":"IFERROR(VLOOKUP(G28,наук!$C$14:$D$103,2,FALSE),\" \")","v":" "}]
[" ",{"$f":"IFERROR(VLOOKUP(G29,наук!$C$14:$D$103,2,FALSE),\" \")","v":" "}]
[null,null,null,"Загальна кількість годин",{"$f":"SUM(E22:E29)","v":0},{"$f":"SUM(F22:F29)","v":0}]
[null,{"$f":"B19","v":"Викладач ______________      Завідувач кафедри  ____________       / Пилипенко А.А. /"}]
[null,"ІV. ОРГАНІЗАЦІЙНА РОБОТА"]
["№   п/п","Зміст","Підсумковий результат ","Термін виконання","Плановий обсяг,                                год","Фактичний обсяг,                    год","ВВЕДІТЬ НОМЕР ВІД 301-346"]
[{"$f":"IF(B34=0,0,1)","v":1},{"$f":"IFERROR(VLOOKUP(G34,органз!$C$14:$D$120,2,FALSE),\" \")","v":" "}]
[{"$f":"IF(B35=\" \",\" \",A34+1)","v":" "},{"$f":"IFERROR(VLOOKUP(G35,органз!$C$14:$D$120,2,FALSE),\" \")","v":" "}]
[{"$f":"IF(B36=\" \",\" \",A35+1)","v":" "},{"$f":"IFERROR(VLOOKUP(G36,органз!$C$14:$D$120,2,FALSE),\" \")","v":" "}]
[" ",{"$f":"IFERROR(VLOOKUP(G37,органз!$C$14:$D$120,2,FALSE),\" \")","v":" "}]
[" ",{"$f":"IFERROR(VLOOKUP(G38,органз!$C$14:$D$120,2,FALSE),\" \")","v":" "}]
[null,null,null,"Загальна кількість годин",{"$f":"SUM(E34:E38)","v":0},{"$f":"SUM(F34:F38)","v":0}]
[null,{"$f":"B19","v":"Викладач ______________      Завідувач кафедри  ____________       / Пилипенко А.А. /"}]

{"sheet":"ЗМІНИ ТА ВИСНОВКИ","index":4,"n_rows":21,"n_cols":7,"rows_kept":21,"cut":false,"hidden":false,"merged":[[23,1,23,5],[24,1,24,5],[25,1,25,5],[26,1,26,5],[27,1,27,5],[22,1,22,5],[19,0,19,6],[0,0,0,5],[11,1,11,5],[12,1,12,5],[13,1,13,5],[14,1,14,5],[10,0,10,6],[15,1,15,5],[16,1,16,5],[17,1,17,5],[20,1,20,5],[21,1,21,5]]}
["V. ПЕРЕЛІК ЗМІН У ПЛАНІ РОБОТИ ВИКЛАДАЧА"]
["Семестр","Види навчальної роботи ","Сутність запроваджених змін в навчальних дисциплінах і видах навчальної роботи та їх обґрунтування","Плановий обсяг,                                год","Фактичний обсяг,                    год","Підстава                                                  (накази, розпорядження, протоколи засідань кафедри, лікарняні листи)","Підпис  завідувача кафедри"]
[]
[]
[]
[]
[]
[]
[]
[]
["VI.  ВИСНОВОК ПРО ВИКОНАННЯ ПЛАНУ"]
["Семестр","Зміст",null,null,null,null,"Підпис  завідувача кафедри"]
[null,{"$f":"CONCATENATE(\"Звіт про виконання індивідуального плану за \",ТИТУЛ!A34,\" навчальний рік викладача \",ТИТУЛ!A24,\" розглянуто ___  _____________ 20__ р. на засіданні кафедри \",ТИТУЛ!B12,\" й ухвалено рішення (протокол №______): Індивідуальний план виконано в обсязі \",РОЗПОДІЛ!E19,\" годин.\")","v":"Звіт про виконання індивідуального плану за 2023/2024 навчальний рік викладача  розглянуто ___  _____________ 20__ р. на засіданні кафедри Обліку і бізнес-консалтингу й ухвалено рішення (протокол №______): Індивідуальний план виконано в обсязі 0 годин."}]
[null,"Пояснення щодо причин недовиконання:"]
[]
[]
[]
[]
[]
["VII. ЗАУВАЖЕННЯ ОСІБ, ЯКІ ПЕРЕВІРЯЮТЬ РОБОТУ КАФЕДРИ "]
["Дата","Сутність зауважень",null,null,null,null,"Підпис"]

{"sheet":"метод","index":5,"n_rows":141,"n_cols":4,"rows_kept":141,"cut":false,"hidden":false,"merged":[]}
[]
["ПП","ПЕРЕЛІК МЕТОДИЧНИХ РОБІТ","номер"]
[]
[]
[]
[]
[]
[]
[]
[]
[]
[]
["ПП","ПЕРЕЛІК МЕТОДИЧНИХ РОБІТ","номер"]
["1.1.1","Розроблення освітньо-професійної та/ або освітньо-наукової програм підготовки фахівців: розроблення",1,{"$f":"CONCATENATE(A14,\" \", B14)","v":"1.1.1 Розроблення освітньо-професійної та/ або освітньо-наукової програм підготовки фахівців: розроблення"}]
["1.1.2","Розроблення освітньо-професійної та/ або освітньо-наукової програм підготовки фахівців: оновлення",2,{"$f":"CONCATENATE(A15,\" \", B15)","v":"1.1.2 Розроблення освітньо-професійної та/ або освітньо-наукової програм підготовки фахівців: оновлення"}]
["1.2","Розроблення концепції освітньої діяльності за спеціальністю на певному рівні",3,"1.2 Розроблення концепції освітньої діяльності за спеціальністю на певному рівні"]
["1.3","Підготовка ліцензійних справ",4,"1.3 Підготовка ліцензійних справ"]
["1.4","Підготовка акредитаційних справ",5,"1.4 Підготовка акредитаційних справ"]
["1.5.1","Підготовка навчальних планів відповідної освітньо-професійної та освітньо-наукової програми",6,"1.5.1 Підготовка навчальних планів відповідної освітньо-професійної та освітньо-наукової програми"]
["1.5.2","Підготовка робочих навчальних планів відповідної освітньо-професійної та освітньо-наукової програми",7,"1.5.2 Підготовка робочих навчальних планів відповідної освітньо-професійної та освітньо-наукової програми"]
["2.1.1","Розроблення  робочих програм навчальних дисциплін (РПНД)",8,"2.1.1 Розроблення  робочих програм навчальних дисциплін (РПНД)"]
["2.1.2","Оновлення робочих програм навчальних дисциплін (РПНД)",9,"2.1.2 Оновлення робочих програм навчальних дисциплін (РПНД)"]
["2.2.1","Розроблення  робочих програм навчальних дисциплін (РПНД): іноземною мовою",10,"2.2.1 Розроблення  робочих програм навчальних дисциплін (РПНД): іноземною мовою"]
["2.2.2","Оновлення робочих програм навчальних дисциплін (РПНД): іноземною мовою",11,"2.2.2 Оновлення робочих програм навчальних дисциплін (РПНД): іноземною мовою"]
["2.3.1","Розроблення силабусу навчальної дисципліни",12,"2.3.1 Розроблення силабусу навчальної дисципліни"]
["2.3.2","Оновлення силабусу навчальної дисципліни",13,"2.3.2 Оновлення силабусу навчальної дисципліни"]
["2.4.1","Розроблення силабусу навчальної дисципліни: іноземною мовою",14,"2.4.1 Розроблення силабусу навчальної дисципліни: іноземною мовою"]
["2.4.2","Оновлення силабусу навчальної дисципліни: іноземною мовою",15,"2.4.2 Оновлення силабусу навчальної дисципліни: іноземною мовою"]
["2.5.1","Розроблення робочого плану (технологічної  карти) навчальної дисципліни",16,"2.5.1 Розроблення робочого плану (технологічної  карти) навчальної дисципліни"]
["2.5.2","Оновлення робочого плану (технологічної  карти) навчальної дисципліни",17,"2.5.2 Оновлення робочого плану (технологічної  карти) навчальної дисципліни"]
["2.6.1","Розроблення робочого плану (технологічної  карти) навчальної дисципліни: іноземною мовою",18,"2.6.1 Розроблення робочого плану (технологічної  карти) навчальної дисципліни: іноземною мовою"]
["2.6.2","Оновлення робочого плану (технологічної  карти) навчальної дисципліни: іноземною мовою",19,"2.6.2 Оновлення робочого плану (технологічної  карти) навчальної дисципліни: іноземною мовою"]
["3.1.1","Підготовка конспектів лекцій та/або засобів активізації навчально-пізнавальної діяльності (технічної візуалізації): розроблення",20,"3.1.1 Підготовка конспектів лекцій та/або засобів активізації навчально-пізнавальної діяльності (технічної візуалізації): розроблення"]
["3.1.2","Підготовка конспектів лекцій та/або засобів активізації навчально-пізнавальної діяльності (технічної візуалізації): оновлення",21,"3.1.2 Підготовка конспектів лекцій та/або засобів активізації навчально-пізнавальної діяльності (технічної візуалізації): оновлення"]
["3.2.1","Підготовка конспектів лекцій та/або засобів активізації навчально-пізнавальної діяльності (технічної візуалізації): розроблення ",22,"3.2.1 Підготовка конспектів лекцій та/або засобів активізації навчально-пізнавальної діяльності (технічної візуалізації): розроблення "]
["3.2.2","Підготовка конспектів лекцій та/або засобів активізації навчально-пізнавальної діяльності (технічної візуалізації): оновлення іноземною мовою",23,"3.2.2 Підготовка конспектів лекцій та/або засобів активізації навчально-пізнавальної діяльності (технічної візуалізації): оновлення іноземною мовою"]
["3.3.1","Підготовка методичних матеріалів семінарських, практичних, лабораторних занять: розроблення",24,"3.3.1 Підготовка методичних матеріалів семінарських, практичних, лабораторних занять: розроблення"]
["3.3.2","Підготовка методичних матеріалів семінарських, практичних, лабораторних занять: оновлення",25,"3.3.2 Підготовка методичних матеріалів семінарських, практичних, лабораторних занять: оновлення"]
["3.4.1","Підготовка методичних матеріалів семінарських, практичних, лабораторних занять: розроблення іноземною мовою",26,"3.4.1 Підготовка методичних матеріалів семінарських, практичних, лабораторних занять: розроблення іноземною мовою"]
["3.4.2","Підготовка методичних матеріалів семінарських, практичних, лабораторних занять: оновлення іноземною мовою",27,"3.4.2 Підготовка методичних матеріалів семінарських, практичних, лабораторних занять: оновлення іноземною мовою"]
["3.5.1","Підготовка матеріалів до самостійної роботи (СР): розроблення",28,"3.5.1 Підготовка матеріалів до самостійної роботи (СР): розроблення"]
["3.5.2","Підготовка матеріалів до самостійної роботи (СР): оновлення",29,"3.5.2 Підготовка матеріалів до самостійної роботи (СР): оновлення"]
["3.6.1","Підготовка матеріалів до самостійної роботи (СР): розроблення іноземною мовою",30,"3.6.1 Підготовка матеріалів до самостійної роботи (СР): розроблення іноземною мовою"]
["3.6.2","Підготовка матеріалів до самостійної роботи (СР): оновлення іноземною мовою",31,"3.6.2 Підготовка матеріалів до самостійної роботи (СР): оновлення іноземною мовою"]
["3.7.1","Розроблення авторських ігрових форм навчання (тренінгів, ділових, рольових, імітаційних ігор, проблемних завдань та ситуацій та ін.): розроблення",32,"3.7.1 Розроблення авторських ігрових форм навчання (тренінгів, ділових, рольових, імітаційних ігор, проблемних завдань та ситуацій та ін.): розроблення"]
["3.7.2","Розроблення авторських ігрових форм навчання (тренінгів, ділових, рольових, імітаційних ігор, проблемних завдань та ситуацій та ін.): оновлення",33,"3.7.2 Розроблення авторських ігрових форм навчання (тренінгів, ділових, рольових, імітаційних ігор, проблемних завдань та ситуацій та ін.): оновлення"]
["3.8","Розроблення нової сертифікованої ПНС, що досягла контентного рівня",34,"3.8 Розроблення нової сертифікованої ПНС, що досягла контентного рівня"]
["3.9","Оновлення сертифікованої ПНС, що досягла контентного рівня",35,"3.9 Оновлення сертифікованої ПНС, що досягла контентного рівня"]
["3.10","Розроблення та оновлення елементів інтерактивного рівня сертифікованої ПНС, що досягла контентного рівня",36,"3.10 Розроблення та оновлення елементів інтерактивного рівня сертифікованої ПНС, що досягла контентного рівня"]
["3.11","Розроблення сертифікованої ПНС, що досягла автономного рівня",37,"3.11 Розроблення сертифікованої ПНС, що досягла автономного рівня"]
["3.12","Оновлення сертифікованої ПНС, що досягла автономного рівня",38,"3.12 Оновлення сертифікованої ПНС, що досягла автономного рівня"]
["3.13","Створення / адаптація віртуальних середовищ (господарських організацій, фінансових установ, їхніх функціональних підрозділів)",39,"3.13 Створення / адаптація віртуальних середовищ (господарських організацій, фінансових установ, їхніх функціональних підрозділів)"]
["3.14","Проведення комп'ютерних бізнес-симуляцій",40,"3.14 Проведення комп'ютерних бізнес-симуляцій"]
["4.1","Підготовка методичних рекомендацій до практичних занять із навчальної дисципліни / практикуму",41,"4.1 Підготовка методичних рекомендацій до практичних занять із навчальної дисципліни / практикуму"]
["4.2","Підготовка методичних рекомендацій до самостійної роботи з навчальної дисципліни",42,"4.2 Підготовка методичних рекомендацій до самостійної роботи з навчальної дисципліни"]
["4.3","Підготовка методичних рекомендацій до лабораторних занять із навчальної дисципліни / лабораторного практикуму",43,"4.3 Підготовка методичних рекомендацій до лабораторних занять із навчальної дисципліни / лабораторного практикуму"]
["4.4","Підготовка методичних рекомендацій до проведення лабораторних робіт у віртуальних середовищах (господарських організаціях, фінансових установах, їхніх функціональних підрозділах). ",44,"4.4 Підготовка методичних рекомендацій до проведення лабораторних робіт у віртуальних середовищах (господарських організаціях, фінансових установах, їхніх функціональних підрозділах). "]
["4.5","Підготовка методичних рекомендацій до тренінгів",45,"4.5 Підготовка методичних рекомендацій до тренінгів"]
["4.6","Підготовка програми практики ",46,"4.6 Підготовка програми практики "]
["4.7","Підготовка методичних рекомендацій до виконання курсових (консультаційних) робіт (проєктів)",47,"4.7 Підготовка методичних рекомендацій до виконання курсових (консультаційних) робіт (проєктів)"]
["4.8","Підготовка методичних рекомендацій до написання дипломних робіт (проєктів), кваліфікаційних іспитів за спеціальністю",48,"4.8 Підготовка методичних рекомендацій до написання дипломних робіт (проєктів), кваліфікаційних іспитів за спеціальністю"]
["4.9","Підготовка збірника (задач, завдань, вправ, тестів)",49,"4.9 Підготовка збірника (задач, завдань, вправ, тестів)"]
["4.10","Підготовка курсу лекцій / конспекту лекцій",50,"4.10 Підготовка курсу лекцій / конспекту лекцій"]
["4.11","Підготовка словника, хрестоматії, довідника тощо ",51,"4.11 Підготовка словника, хрестоматії, довідника тощо "]
["4.12","Підготовка навчального посібника ",52,"4.12 Підготовка навчального посібника "]
["4.13","Підготовка підручника",53,"4.13 Підготовка підручника"]
["4.14.1","Підготовка методичних рекомендацій до практичних занять із навчальної дисципліни / практикуму іноземною мовою",54,"4.14.1 Підготовка методичних рекомендацій до практичних занять із навчальної дисципліни / практикуму іноземною мовою"]
["4.14.2","Підготовка методичних рекомендацій до самостійної роботи з навчальної дисципліни іноземною мовою",55,"4.14.2 Підготовка методичних рекомендацій до самостійної роботи з навчальної дисципліни іноземною мовою"]
["4.14.3","Підготовка методичних рекомендацій до лабораторних занять із навчальної дисципліни / лабораторного практикуму іноземною мовою",56,"4.14.3 Підготовка методичних рекомендацій до лабораторних занять із навчальної дисципліни / лабораторного практикуму іноземною мовою"]
["4.14.4","Підготовка методичних рекомендацій до проведення лабораторних робіт у віртуальних середовищах (господарських організаціях, фінансових установах, їхніх функціональних підрозділах) іноземною мовою ",57,"4.14.4 Підготовка методичних рекомендацій до проведення лабораторних робіт у віртуальних середовищах (господарських організаціях, фінансових установах, їхніх функціональних підрозділах) іноземною мовою "]
["4.14.5","Підготовка методичних рекомендацій до тренінгів іноземною мовою",58,"4.14.5 Підготовка методичних рекомендацій до тренінгів іноземною мовою"]
["4.14.6","Підготовка програми практики іноземною мовою",59,"4.14.6 Підготовка програми практики іноземною мовою"]
["4.14.7","Підготовка методичних рекомендацій до виконання курсових (консультаційних) робіт (проєктів) іноземною мовою",60,"4.14.7 Підготовка методичних рекомендацій до виконання курсових (консультаційних) робіт (проєктів) іноземною мовою"]
["4.14.8","Підготовка методичних рекомендацій до написання дипломних робіт (проєктів), кваліфікаційних іспитів за спеціальністю іноземною мовою",61,"4.14.8 Підготовка методичних рекомендацій до написання дипломних робіт (проєктів), кваліфікаційних іспитів за спеціальністю іноземною мовою"]
["4.14.9","Підготовка збірника (задач, завдань, вправ, тестів) іноземною мовою",62,"4.14.9 Підготовка збірника (задач, завдань, вправ, тестів) іноземною мовою"]
["4.14.10","Підготовка курсу лекцій / конспекту лекцій іноземною мовою",63,"4.14.10 Підготовка курсу лекцій / конспекту лекцій іноземною мовою"]
["4.14.11","Підготовка словника, хрестоматії, довідника тощо іноземною мовою",64,"4.14.11 Підготовка словника, хрестоматії, довідника тощо іноземною мовою"]
["4.14.12","Підготовка навчального посібника іноземною мовою",65,"4.14.12 Підготовка навчального посібника іноземною мовою"]
["4.14.13","Підготовка підручника іноземною мовою ",66,"4.14.13 Підготовка підручника іноземною мовою "]
["4.15.1","Розроблення початкового формату електронного мультимедійного інтерактивного видання (матеріал у початковому форматі містить текст, рисунки та послідовну чи нумеровану можливість переходу зі сторінки на сторінку або від слайда до слайда. Він має електронний носій інформації, але за формою та своїм складом не відрізняється від аналогічних друкованих видань)",67,"4.15.1 Розроблення початкового формату електронного мультимедійного інтерактивного видання (матеріал у початковому форматі містить текст, рисунки та послідовну чи нумеровану можливість переходу зі сторінки на сторінку або від слайда до слайда. Він має електронний носій інформації, але за формою та своїм складом не відрізняється від аналогічних друкованих видань)"]
["4.16","Початковий формат електронного мультимедійного інтерактивного видання в разі наявності опублікованого видання та 50 % не оновленого змісту",68,"4.16 Початковий формат електронного мультимедійного інтерактивного видання в разі наявності опублікованого видання та 50 % не оновленого змісту"]
["4.17","Створення електронного мультимедійного інтерактивного видання (на базі початкового формату) з елементами початкової інтерактивності: контентозалежна навігація (перехід з однієї частини тексту чи об'єкта видання до іншої за гіперпосиланнями), додавання відео чи анімації, перехід між окремими частинами навчального матеріалу, візуалізація прихованих рисунків та прихованого тексту, управління спливаючими підказками, виклик помічника, указки тощо",69,"4.17 Створення електронного мультимедійного інтерактивного видання (на базі початкового формату) з елементами початкової інтерактивності: контентозалежна навігація (перехід з однієї частини тексту чи об'єкта видання до іншої за гіперпосиланнями), додавання відео чи анімації, перехід між окремими частинами навчального матеріалу, візуалізація прихованих рисунків та прихованого тексту, управління спливаючими підказками, виклик помічника, указки тощо"]
["4.18.1","Створення додаткових елементів мультимедійності: створення фрагментів відеолекцій та відеоуроків  ",70,"4.18.1 Створення додаткових елементів мультимедійності: створення фрагментів відеолекцій та відеоуроків  "]
["4.18.2","Створення додаткових елементів мультимедійності: створення анімаційних роликів",71,"4.18.2 Створення додаткових елементів мультимедійності: створення анімаційних роликів"]
["4.19"," Створення адаптивності електронного мультимедійного інтерактивного видання, тобто можливості адаптації під різні характеристики особливого сприйняття інформації шляхом викладення одного й того ж матеріалу за різними методиками з відповідною адаптивністю навігації за матеріалом, а саме: створення скороченого аудіо-візуально-образного варіанта видання, синхронізація звукового супроводу графічного матеріалу, можливість обрання мови навчального матеріалу тощо",72,"4.19  Створення адаптивності електронного мультимедійного інтерактивного видання, тобто можливості адаптації під різні характеристики особливого сприйняття інформації шляхом викладення одного й того ж матеріалу за різними методиками з відповідною адаптивністю навігації за матеріалом, а саме: створення скороченого аудіо-візуально-образного варіанта видання, синхронізація звукового супроводу графічного матеріалу, можливість обрання мови навчального матеріалу тощо"]
["4.20","Створення навчальних елементів середньої інтерактивності електронного мультимедійного інтерактивного видання, які створюють умовні переходи за результатами розумової діяльності студента (інтерактивних тестових завдань, інтерактивних вправ, ситуаційних задач, симуляцій комп'ютерних програм тощо на базі сценаріїв)",73,"4.20 Створення навчальних елементів середньої інтерактивності електронного мультимедійного інтерактивного видання, які створюють умовні переходи за результатами розумової діяльності студента (інтерактивних тестових завдань, інтерактивних вправ, ситуаційних задач, симуляцій комп'ютерних програм тощо на базі сценаріїв)"]
["4.21","Створення навчальних елементів високої інтерактивності електронного мультимедійного інтерактивного видання (модулів для моделювання читачами об'єктів і процесів із мультимедійним зворотним зв'язком на базі сценаріїв) ",74,"4.21 Створення навчальних елементів високої інтерактивності електронного мультимедійного інтерактивного видання (модулів для моделювання читачами об'єктів і процесів із мультимедійним зворотним зв'язком на базі сценаріїв) "]
["5.1.1","Розроблення засобів діагностики поточного та підсумкового контролю: розроблення завдань для проведення поточного контролю",75,"5.1.1 Розроблення засобів діагностики поточного та підсумкового контролю: розроблення завдань для проведення поточного контролю"]
["5.1.2","Розроблення засобів діагностики поточного та підсумкового контролю: складання екзаменаційних білетів",76,"5.1.2 Розроблення засобів діагностики поточного та підсумкового контролю: складання екзаменаційних білетів"]
["5.1.3","Розроблення засобів діагностики поточного та підсумкового контролю: складання екзаменаційних білетів до вступних екзаменів (іспитів) (письмових та усних)",77,"5.1.3 Розроблення засобів діагностики поточного та підсумкового контролю: складання екзаменаційних білетів до вступних екзаменів (іспитів) (письмових та усних)"]
["5.1.4","Розроблення засобів діагностики поточного та підсумкового контролю: складання завдань до кваліфікаційного іспиту за спеціальністю",78,"5.1.4 Розроблення засобів діагностики поточного та підсумкового контролю: складання завдань до кваліфікаційного іспиту за спеціальністю"]
["5.1.5","Розроблення засобів діагностики поточного та підсумкового контролю: складання завдань для проведення студентської або учнівської олімпіади (за наявності наказу)",79,"5.1.5 Розроблення засобів діагностики поточного та підсумкового контролю: складання завдань для проведення студентської або учнівської олімпіади (за наявності наказу)"]
["5.1.6","Розроблення засобів діагностики поточного та підсумкового контролю: розроблення комплексних контрольних робіт для перевірки залишкових знань (за наявності наказу)",80,"5.1.6 Розроблення засобів діагностики поточного та підсумкового контролю: розроблення комплексних контрольних робіт для перевірки залишкових знань (за наявності наказу)"]
["5.2.1","Оновлення засобів діагностики поточного та підсумкового контролю: розроблення завдань для проведення поточного контролю",81,"5.2.1 Оновлення засобів діагностики поточного та підсумкового контролю: розроблення завдань для проведення поточного контролю"]
["5.2.2","Оновлення засобів діагностики поточного та підсумкового контролю: складання екзаменаційних білетів",82,"5.2.2 Оновлення засобів діагностики поточного та підсумкового контролю: складання екзаменаційних білетів"]
["5.2.3","Оновлення засобів діагностики поточного та підсумкового контролю: складання екзаменаційних білетів до вступних екзаменів (іспитів) (письмових та усних)",83,"5.2.3 Оновлення засобів діагностики поточного та підсумкового контролю: складання екзаменаційних білетів до вступних екзаменів (іспитів) (письмових та усних)"]
["5.2.4","Оновлення засобів діагностики поточного та підсумкового контролю: складання завдань до кваліфікаційного іспиту за спеціальністю",84,"5.2.4 Оновлення засобів діагностики поточного та підсумкового контролю: складання завдань до кваліфікаційного іспиту за спеціальністю"]
["5.2.5","Оновлення засобів діагностики поточного та підсумкового контролю: складання завдань для проведення студентської або учнівської олімпіади (за наявності наказу)",85,"5.2.5 Оновлення засобів діагностики поточного та підсумкового контролю: складання завдань для проведення студентської або учнівської олімпіади (за наявності наказу)"]
["5.2.6","Оновлення засобів діагностики поточного та підсумкового контролю: розроблення комплексних контрольних робіт для перевірки залишкових знань (за наявності наказу)",86,"5.2.6 Оновлення засобів діагностики поточного та підсумкового контролю: розроблення комплексних контрольних робіт для перевірки залишкових знань (за наявності наказу)"]
["5.3.1","Розроблення засобів діагностики поточного та підсумкового контролю: розроблення завдань для проведення поточного контролю іноземною мовою",87,"5.3.1 Розроблення засобів діагностики поточного та підсумкового контролю: розроблення завдань для проведення поточного контролю іноземною мовою"]
["5.3.2","Розроблення засобів діагностики поточного та підсумкового контролю: складання екзаменаційних білетів іноземною мовою",88,"5.3.2 Розроблення засобів діагностики поточного та підсумкового контролю: складання екзаменаційних білетів іноземною мовою"]
["5.3.3","Розроблення засобів діагностики поточного та підсумкового контролю: складання екзаменаційних білетів до вступних екзаменів (іспитів) (письмових та усних) іноземною мовою",89,"5.3.3 Розроблення засобів діагностики поточного та підсумкового контролю: складання екзаменаційних білетів до вступних екзаменів (іспитів) (письмових та усних) іноземною мовою"]
["5.3.4","Розроблення засобів діагностики поточного та підсумкового контролю: складання завдань до кваліфікаційного іспиту за спеціальністю іноземною мовою",90,"5.3.4 Розроблення засобів діагностики поточного та підсумкового контролю: складання завдань до кваліфікаційного іспиту за спеціальністю іноземною мовою"]
["5.3.5","Розроблення засобів діагностики поточного та підсумкового контролю: складання завдань для проведення студентської або учнівської олімпіади (за наявності наказу) іноземною мовою",91,"5.3.5 Розроблення засобів діагностики поточного та підсумкового контролю: складання завдань для проведення студентської або учнівської олімпіади (за наявності наказу) іноземною мовою"]
["5.3.6","Розроблення засобів діагностики поточного та підсумкового контролю: розроблення комплексних контрольних робіт для перевірки залишкових знань (за наявності наказу іноземною мовою",92,"5.3.6 Розроблення засобів діагностики поточного та підсумкового контролю: розроблення комплексних контрольних робіт для перевірки залишкових знань (за наявності наказу іноземною мовою"]
["5.3.7","Оновлення засобів діагностики поточного та підсумкового контролю: розроблення завдань для проведення поточного контролю іноземною мовою",93,"5.3.7 Оновлення засобів діагностики поточного та підсумкового контролю: розроблення завдань для проведення поточного контролю іноземною мовою"]
["5.3.8","Оновлення засобів діагностики поточного та підсумкового контролю: складання екзаменаційних білетів іноземною мовою іноземною мовою",94,{"$f":"CONCATENATE(A107,\" \", B107)","v":"5.3.8 Оновлення засобів діагностики поточного та підсумкового контролю: складання екзаменаційних білетів іноземною мовою іноземною мовою"}]
["5.3.9","Оновлення засобів діагностики поточного та підсумкового контролю: складання екзаменаційних білетів до вступних екзаменів (іспитів) (письмових та усних) іноземною мовою",95,"5.3.9 Оновлення засобів діагностики поточного та підсумкового контролю: складання екзаменаційних білетів до вступних екзаменів (іспитів) (письмових та усних) іноземною мовою"]
["5.3.10","Оновлення засобів діагностики поточного та підсумкового контролю: складання завдань до кваліфікаційного іспиту за спеціальністю іноземною мовою",96,"5.3.10 Оновлення засобів діагностики поточного та підсумкового контролю: складання завдань до кваліфікаційного іспиту за спеціальністю іноземною мовою"]
["5.3.11","Оновлення засобів діагностики поточного та підсумкового контролю: складання завдань для проведення студентської або учнівської олімпіади (за наявності наказу) іноземною мовою",97,"5.3.11 Оновлення засобів діагностики поточного та підсумкового контролю: складання завдань для проведення студентської або учнівської олімпіади (за наявності наказу) іноземною мовою"]
["5.3.12","Оновлення засобів діагностики поточного та підсумкового контролю: розроблення комплексних контрольних робіт для перевірки залишкових знань (за наявності наказу іноземною мовою",98,"5.3.12 Оновлення засобів діагностики поточного та підсумкового контролю: розроблення комплексних контрольних робіт для перевірки залишкових знань (за наявності наказу іноземною мовою"]
["5.4","Перевірка  контрольних (модульних) робіт, передбачених навчальним планом",99,"5.4 Перевірка  контрольних (модульних) робіт, передбачених навчальним планом"]
["5.5","Перевірка семестрових екзаменів (іспитів)",100,"5.5 Перевірка семестрових екзаменів (іспитів)"]
["6.1","Робота у вченій раді університету",101,"6.1 Робота у вченій раді університету"]
["6.2","Робота у КТК університету",102,"6.2 Робота у КТК університету"]
["6.3","Робота в науково-методичних радах і комісіях факультету",103,"6.3 Робота в науково-методичних радах і комісіях факультету"]
["6.4","Робота в експертних комісіях з поновлення, переведення здобувачів вищої освіти, в разових  предметних комісіях з визнання неформальної та/або інформальної освіти",104,"6.4 Робота в експертних комісіях з поновлення, переведення здобувачів вищої освіти, в разових  предметних комісіях з визнання неформальної та/або інформальної освіти"]
["6.5","Виконання обов'язків секретаря екзаменаційної комісії",105,"6.5 Виконання обов'язків секретаря екзаменаційної комісії"]
["6.6","Робота у вченій раді факультету",106,"6.6 Робота у вченій раді факультету"]
["6.7","Виконання обов'язків секретаря вченої ради факультету",107,"6.7 Виконання обов'язків секретаря вченої ради факультету"]
["6.8","Організація та проведення методичних заходів кафедри",108,"6.8 Організація та проведення методичних заходів кафедри"]
["6.9","Організація та проведення методичних міжкафедральних семінарів",109,"6.9 Організація та проведення методичних міжкафедральних семінарів"]
["6.10","Організація та проведення методичних загальноуніверситетських семінарів (тренінгів, круглих столів)",110,"6.10 Організація та проведення методичних загальноуніверситетських семінарів (тренінгів, круглих столів)"]
["6.11","Робота за дорученням адміністрації ",111,"6.11 Робота за дорученням адміністрації "]
["6.12","Перевірка виконання студентами ректорської контрольної роботи,  (зрізи залишкових знань)",112,"6.12 Перевірка виконання студентами ректорської контрольної роботи,  (зрізи залишкових знань)"]
["6.13","Взаємовідвідування занять",113,"6.13 Взаємовідвідування занять"]
["6.14","Проведення консультацій із навчальних дисциплін протягом семестру",114,"6.14 Проведення консультацій із навчальних дисциплін протягом семестру"]
["6.15.1","Консультування та рецензування дипломних проєктів (робіт): перший (бакалаврський) рівень",115,"6.15.1 Консультування та рецензування дипломних проєктів (робіт): перший (бакалаврський) рівень"]
["6.15.2","Консультування та рецензування дипломних проєктів (робіт): другий (магістерський) рівень",116,"6.15.2 Консультування та рецензування дипломних проєктів (робіт): другий (магістерський) рівень"]
["6.16.1","Консультування та рецензування дипломних проєктів (робіт): перший (бакалаврський) рівень іноземною мовою",117,"6.16.1 Консультування та рецензування дипломних проєктів (робіт): перший (бакалаврський) рівень іноземною мовою"]
["6.16.2","Консультування та рецензування дипломних проєктів (робіт): другий (магістерський) рівень іноземною мовою",118,"6.16.2 Консультування та рецензування дипломних проєктів (робіт): другий (магістерський) рівень іноземною мовою"]
["6.17","Переклад методичної літератури та інших матеріалів за дорученням адміністрації університету",119,"6.17 Переклад методичної літератури та інших матеріалів за дорученням адміністрації університету"]
["7.1","Робота в експертній раді, групі МОН України ",120,"7.1 Робота в експертній раді, групі МОН України "]
["7.2","Робота в експертних радах міністерств та відомств ",121,"7.2 Робота в експертних радах міністерств та відомств "]
["7.3","Робота в колегіях МОН України (загальна участь, участь у проведенні атестацій)",122,"7.3 Робота в колегіях МОН України (загальна участь, участь у проведенні атестацій)"]
["7.4","Робота в науково-методичних комісіях ",123,"7.4 Робота в науково-методичних комісіях "]
["7.5","Робота в робочих групах міністерств ",124,"7.5 Робота в робочих групах міністерств "]
["7.6","Робота в колегіях облдержадміністрації, міськадміністрації",125,"7.6 Робота в колегіях облдержадміністрації, міськадміністрації"]
["7.7","Робота в комітетах різних рівнів ",126,"7.7 Робота в комітетах різних рівнів "]
[null,null,null," "]
[null,null,null," "]

{"sheet":"наук","index":6,"n_rows":88,"n_cols":4,"rows_kept":88,"cut":false,"hidden":false,"merged":[]}
[]
["ПП","ПЕРЕЛІК НАУКОВИХ РОБІТ","номер"]
[]
[]
[]
[]
[]
[]
[]
[]
[]
[]
["ПП","ПЕРЕЛІК НАУКОВИХ РОБІТ","номер"]
["1.1.1","Виконання затверджених планових наукових досліджень: керівнику",201,{"$f":"CONCATENATE(A14,\" \",B14)","v":"1.1.1 Виконання затверджених планових наукових досліджень: керівнику"}]
["1.1.2","Виконання затверджених планових наукових досліджень: виконавцю",202,{"$f":"CONCATENATE(A15,\" \",B15)","v":"1.1.2 Виконання затверджених планових наукових досліджень: виконавцю"}]
["1.2","Підготовка проєктних пропозицій на конкурс / грант, який проводять на вітчизняному або міжнародному рівні ",203,"1.2 Підготовка проєктних пропозицій на конкурс / грант, який проводять на вітчизняному або міжнародному рівні "]
["1.3.1","Винахідницька робота викладача: міжнародні патенти",204,"1.3.1 Винахідницька робота викладача: міжнародні патенти"]
["1.3.2","Винахідницька робота викладача:  патенти",205,"1.3.2 Винахідницька робота викладача:  патенти"]
["1.3.3","Винахідницька робота викладача:  патенти на корисну модель",206,"1.3.3 Винахідницька робота викладача:  патенти на корисну модель"]
["1.3.4","Винахідницька робота викладача:  свідоцтва на твір",207,"1.3.4 Винахідницька робота викладача:  свідоцтва на твір"]
["1.3.5","Винахідницька робота викладача: свідоцтва на твір",208,"1.3.5 Винахідницька робота викладача: свідоцтва на твір"]
["1.4","Підготовка ескізних проєктів, експериментальних (дослідних) зразків або їх діючих моделей, конструкторської або технологічної документації на науково-технічну продукцію, дослідних зразків",209,"1.4 Підготовка ескізних проєктів, експериментальних (дослідних) зразків або їх діючих моделей, конструкторської або технологічної документації на науково-технічну продукцію, дослідних зразків"]
["1.5.1","Підготовка монографії до публікації вітчизняних видавництвах: колективна монографія",210,"1.5.1 Підготовка монографії до публікації вітчизняних видавництвах: колективна монографія"]
["1.5.2","Підготовка монографії до публікації вітчизняних видавництвах: одноосібна монографія",211,"1.5.2 Підготовка монографії до публікації вітчизняних видавництвах: одноосібна монографія"]
["1.6.1","Підготовка монографії до публікації в закордонних видавництвах: колективна монографія",212,"1.6.1 Підготовка монографії до публікації в закордонних видавництвах: колективна монографія"]
["1.6.2","Підготовка монографії до публікації в закордонних видавництвах: одноосібна монографія",213,"1.6.2 Підготовка монографії до публікації в закордонних видавництвах: одноосібна монографія"]
["1.7","Підготовка монографії /розділу монографії до публікації в НМБД ",214,"1.7 Підготовка монографії /розділу монографії до публікації в НМБД "]
["1.8.1","Підготовка наукових статей: у журналах, що індексуються в міжнародних наукометричних базах Scopus, Web of Science",215,"1.8.1 Підготовка наукових статей: у журналах, що індексуються в міжнародних наукометричних базах Scopus, Web of Science"]
["1.8.2","Підготовка наукових статей: у наукових виданнях, що індексуються в інших провідних міжнародних наукометричних базах, визнаних МОН",216,"1.8.2 Підготовка наукових статей: у наукових виданнях, що індексуються в інших провідних міжнародних наукометричних базах, визнаних МОН"]
["1.8.3","Підготовка наукових статей: у закордонних журналах",217,"1.8.3 Підготовка наукових статей: у закордонних журналах"]
["1.8.4","Підготовка наукових статей: у фахових вітчизняних виданнях",218,"1.8.4 Підготовка наукових статей: у фахових вітчизняних виданнях"]
["1.8.5","Підготовка наукових статей: у вітчизняних виданнях (що не входять до наукометричних баз даних)",219,"1.8.5 Підготовка наукових статей: у вітчизняних виданнях (що не входять до наукометричних баз даних)"]
["1.9.1","Підготовка тез доповідей: тези доповіді в виданнях, що індексуються в міжнародних науко метричних базах Scopus, Web of Science",220,"1.9.1 Підготовка тез доповідей: тези доповіді в виданнях, що індексуються в міжнародних науко метричних базах Scopus, Web of Science"]
["1.9.2","Підготовка тез доповідей: тези доповіді в закордонних виданнях",221,"1.9.2 Підготовка тез доповідей: тези доповіді в закордонних виданнях"]
["1.9.3","Підготовка тез доповідей: тези доповіді у вітчизняних виданнях",222,"1.9.3 Підготовка тез доповідей: тези доповіді у вітчизняних виданнях"]
["1.10","Підготовка до виступу з доповіддю (очна участь, без публікації тез)",223,"1.10 Підготовка до виступу з доповіддю (очна участь, без публікації тез)"]
["1.11.1","Підготовка проєктних пропозицій на конкурс / грант, який проводять на вітчизняному або міжнародному рівні іноземною мовою",224,"1.11.1 Підготовка проєктних пропозицій на конкурс / грант, який проводять на вітчизняному або міжнародному рівні іноземною мовою"]
["1.11.2","Підготовка монографії до публікації вітчизняних видавництвах: колективна монографія іноземною мовою",225,"1.11.2 Підготовка монографії до публікації вітчизняних видавництвах: колективна монографія іноземною мовою"]
["1.11.3","Підготовка монографії до публікації вітчизняних видавництвах: одноосібна монографія іноземною мовою",226,"1.11.3 Підготовка монографії до публікації вітчизняних видавництвах: одноосібна монографія іноземною мовою"]
["1.11.4","Підготовка монографії до публікації в закордонних видавництвах: колективна монографія іноземною мовою",227,"1.11.4 Підготовка монографії до публікації в закордонних видавництвах: колективна монографія іноземною мовою"]
["1.11.5","Підготовка монографії до публікації в закордонних видавництвах: одноосібна монографія іноземною мовою",228,"1.11.5 Підготовка монографії до публікації в закордонних видавництвах: одноосібна монографія іноземною мовою"]
["1.11.6","Підготовка монографії /розділу монографії до публікації в НМБД іноземною мовою",229,"1.11.6 Підготовка монографії /розділу монографії до публікації в НМБД іноземною мовою"]
["1.11.7","Підготовка наукових статей: у журналах, що індексуються в міжнародних наукометричних базах Scopus, Web of Science іноземною мовою",230,"1.11.7 Підготовка наукових статей: у журналах, що індексуються в міжнародних наукометричних базах Scopus, Web of Science іноземною мовою"]
["1.11.8","Підготовка наукових статей: у наукових виданнях, що індексуються в інших провідних міжнародних наукометричних базах, визнаних МОН іноземною мовою",231,"1.11.8 Підготовка наукових статей: у наукових виданнях, що індексуються в інших провідних міжнародних наукометричних базах, визнаних МОН іноземною мовою"]
["1.11.9","Підготовка наукових статей: у закордонних журналах іноземною мовою",232,"1.11.9 Підготовка наукових статей: у закордонних журналах іноземною мовою"]
["1.11.10","Підготовка наукових статей: у фахових вітчизняних виданнях іноземною мовою",233,"1.11.10 Підготовка наукових статей: у фахових вітчизняних виданнях іноземною мовою"]
["1.11.11","Підготовка наукових статей: у вітчизняних виданнях (що не входять до наукометричних баз даних) іноземною мовою",234,"1.11.11 Підготовка наукових статей: у вітчизняних виданнях (що не входять до наукометричних баз даних) іноземною мовою"]
["1.11.12","Підготовка тез доповідей: тези доповіді в виданнях, що індексуються в міжнародних науко метричних базах Scopus, Web of Science іноземною мовою",235,"1.11.12 Підготовка тез доповідей: тези доповіді в виданнях, що індексуються в міжнародних науко метричних базах Scopus, Web of Science іноземною мовою"]
["1.11.13","Підготовка тез доповідей: тези доповіді в закордонних виданнях іноземною мовою",236,"1.11.13 Підготовка тез доповідей: тези доповіді в закордонних виданнях іноземною мовою"]
["1.11.14","Підготовка тез доповідей: тези доповіді у вітчизняних виданнях іноземною мовою",237,"1.11.14 Підготовка тез доповідей: тези доповіді у вітчизняних виданнях іноземною мовою"]
["1.11.15","Підготовка до виступу з доповіддю (очна участь, без публікації тез) іноземною мовою",238,"1.11.15 Підготовка до виступу з доповіддю (очна участь, без публікації тез) іноземною мовою"]
["2.1.1","Керівництво науковою роботою студентів: з підготовки наукових статей",239,"2.1.1 Керівництво науковою роботою студентів: з підготовки наукових статей"]
["2.1.2","Керівництво науковою роботою студентів: з підготовки тез доповідей на конференцію",240,"2.1.2 Керівництво науковою роботою студентів: з підготовки тез доповідей на конференцію"]
["2.1.3","Керівництво науковою роботою студентів: з підготовки заявок на видачу охоронних документів",241,"2.1.3 Керівництво науковою роботою студентів: з підготовки заявок на видачу охоронних документів"]
["2.2.1","Підготовка студентів та призерів до участі в конкурсах: міжнародний рівень",242,"2.2.1 Підготовка студентів та призерів до участі в конкурсах: міжнародний рівень"]
["2.2.2","Підготовка студентів та призерів до участі в конкурсах: всеукраїнський рівень (І етап)",243,"2.2.2 Підготовка студентів та призерів до участі в конкурсах: всеукраїнський рівень (І етап)"]
["2.2.3","Підготовка студентів та призерів до участі в конкурсах: всеукраїнський рівень (ІІ етап)",244,"2.2.3 Підготовка студентів та призерів до участі в конкурсах: всеукраїнський рівень (ІІ етап)"]
["2.2.4","Підготовка студентів та призерів до участі в конкурсах: регіональний рівень",245,"2.2.4 Підготовка студентів та призерів до участі в конкурсах: регіональний рівень"]
["2.2.5","Підготовка студентів та призерів до участі в конкурсах: університетський рівень",246,"2.2.5 Підготовка студентів та призерів до участі в конкурсах: університетський рівень"]
["2.3.1","Підготовка студентів та призерів до участі в олімпіаді: міжнародний рівень",247,"2.3.1 Підготовка студентів та призерів до участі в олімпіаді: міжнародний рівень"]
["2.3.2","Підготовка студентів та призерів до участі в олімпіаді: всеукраїнський рівень (І етап)",248,"2.3.2 Підготовка студентів та призерів до участі в олімпіаді: всеукраїнський рівень (І етап)"]
["2.3.3","Підготовка студентів та призерів до участі в олімпіаді: всеукраїнський рівень (ІІ етап)",250,"2.3.3 Підготовка студентів та призерів до участі в олімпіаді: всеукраїнський рівень (ІІ етап)"]
["2.3.4","Підготовка студентів та призерів до участі в олімпіаді: регіональний рівень",251,"2.3.4 Підготовка студентів та призерів до участі в олімпіаді: регіональний рівень"]
["2.3.5","Підготовка студентів та призерів до участі в олімпіаді: університетський рівень",252,"2.3.5 Підготовка студентів та призерів до участі в олімпіаді: університетський рівень"]
["2.4","Керівництво студентським науковим гуртком, групою з науково-дослідної проблеми",253,"2.4 Керівництво студентським науковим гуртком, групою з науково-дослідної проблеми"]
["2.5","Керівництво / консультування науковою роботою аспірантів / докторантів",254,"2.5 Керівництво / консультування науковою роботою аспірантів / докторантів"]
["2.6","Складання кандидатських іспитів (для аспірантів, що навчаються без відриву від виробництва / (очна (денна) форми здобуття освіти))",255,"2.6 Складання кандидатських іспитів (для аспірантів, що навчаються без відриву від виробництва / (очна (денна) форми здобуття освіти))"]
["2.7","Перевірка наукових проєктів здобувачів ступеня доктора філософії",256,"2.7 Перевірка наукових проєктів здобувачів ступеня доктора філософії"]
["2.8","Захист наукових проєктів здобувачів ступеня доктора філософії",257,"2.8 Захист наукових проєктів здобувачів ступеня доктора філософії"]
["2.9.1","Захист дисертацій (для здобувачів ступеня доктора наук, які навчалися за кошти фізичних або юридичних осіб)",258,"2.9.1 Захист дисертацій (для здобувачів ступеня доктора наук, які навчалися за кошти фізичних або юридичних осіб)"]
["2.9.2","Захист дисертацій (для здобувачів ступеня кандидата наук, доктора філософії, які навчалися за кошти фізичних або юридичних осіб)",259,"2.9.2 Захист дисертацій (для здобувачів ступеня кандидата наук, доктора філософії, які навчалися за кошти фізичних або юридичних осіб)"]
["2.10","Керівництво науковою школою",260,"2.10 Керівництво науковою школою"]
["2.11","Робота за дорученням адміністрації ",261,"2.11 Робота за дорученням адміністрації "]
["3.1","Укладання, експертиза та рецензування наукових праць (наукових статей, монографій, проєктних пропозицій, дисертацій та рефератів дисертацій, збірників наукових праць, студентських наукових робіт тощо)",262,"3.1 Укладання, експертиза та рецензування наукових праць (наукових статей, монографій, проєктних пропозицій, дисертацій та рефератів дисертацій, збірників наукових праць, студентських наукових робіт тощо)"]
["3.2","Робота в науково-експертній комісії ХНЕУ Робота в науково-експертній комісії ХНЕУ ім. С. Кузнеця",263,"3.2 Робота в науково-експертній комісії ХНЕУ Робота в науково-експертній комісії ХНЕУ ім. С. Кузнеця"]
["3.3","Робота в комісії кафедри щодо звітування аспірантів /докторантів про виконання індивідуального плану роботи",264,"3.3 Робота в комісії кафедри щодо звітування аспірантів /докторантів про виконання індивідуального плану роботи"]
["3.4","Робота в комісії з узгодження тем дисертацій",265,"3.4 Робота в комісії з узгодження тем дисертацій"]
["3.5.1","Робота в редколегіях наукових журналів та редакційних радах: голова редколегії",266,"3.5.1 Робота в редколегіях наукових журналів та редакційних радах: голова редколегії"]
["3.5.2","Робота в редколегіях наукових журналів та редакційних радах: заступник голови редколегії",267,{"$f":"CONCATENATE(A79,\" \",B79)","v":"3.5.2 Робота в редколегіях наукових журналів та редакційних радах: заступник голови редколегії"}]
["3.5.3","Робота в редколегіях наукових журналів та редакційних радах: члени редколегії",268,"3.5.3 Робота в редколегіях наукових журналів та редакційних радах: члени редколегії"]
["3.6.1","Укладання, експертиза та рецензування наукових праць (наукових статей, монографій, проєктних пропозицій, дисертацій та рефератів дисертацій, збірників наукових праць, студентських наукових робіт тощо) іноземною мовою",269,"3.6.1 Укладання, експертиза та рецензування наукових праць (наукових статей, монографій, проєктних пропозицій, дисертацій та рефератів дисертацій, збірників наукових праць, студентських наукових робіт тощо) іноземною мовою"]
["3.6.2","Робота в науково-експертній комісії ХНЕУ Робота в науково-експертній комісії ХНЕУ ім. С. Кузнеця іноземною мовою",270,"3.6.2 Робота в науково-експертній комісії ХНЕУ Робота в науково-експертній комісії ХНЕУ ім. С. Кузнеця іноземною мовою"]
["3.7.1","Виконання обов'язків у докторських СВР із захисту дисертацій: Голова / заступник голови докторської  СВР",280,"3.7.1 Виконання обов'язків у докторських СВР із захисту дисертацій: Голова / заступник голови докторської  СВР"]
["3.7.2","Виконання обов'язків у докторських СВР із захисту дисертацій: члени СВР",290,"3.7.2 Виконання обов'язків у докторських СВР із захисту дисертацій: члени СВР"]
["3.7.3","Виконання обов'язків у докторських СВР із захисту дисертацій: вчений секретар СВР",291,"3.7.3 Виконання обов'язків у докторських СВР із захисту дисертацій: вчений секретар СВР"]
["3.8.1","Виконання обов'язків у разових СВР із захисту дисертацій: голова разової СВР / відповідальна особа за забезпечення діяльності разових СВР",292,"3.8.1 Виконання обов'язків у разових СВР із захисту дисертацій: голова разової СВР / відповідальна особа за забезпечення діяльності разових СВР"]
["3.8.2","Виконання обов'язків у разових СВР із захисту дисертацій: рецензенти",293]
["3.8.3","Виконання обов'язків у разових СВР із захисту дисертацій: Опоненти",294]

{"sheet":"органз","index":7,"n_rows":76,"n_cols":4,"rows_kept":76,"cut":false,"hidden":false,"merged":[]}
[]
["ПП","ПЕРЕЛІК ОРГАНІЗАЦІЙНИХ РОБІТ","номер"]
[]
[]
[]
[]
[]
[]
[]
[]
[]
[]
["ПП","ПЕРЕЛІК ОРГАНІЗАЦІЙНИХ РОБІТ","номер"]
["1.1.1","Участь у підготовці та проведенні студентських та учнівських олімпіад: робота в організаційному комітеті",301,{"$f":"CONCATENATE(A14,\" \", B14)","v":"1.1.1 Участь у підготовці та проведенні студентських та учнівських олімпіад: робота в організаційному комітеті"}]
["1.1.2","Участь у підготовці та проведенні студентських та учнівських олімпіад: проведення олімпіад",302,{"$f":"CONCATENATE(A15,\" \", B15)","v":"1.1.2 Участь у підготовці та проведенні студентських та учнівських олімпіад: проведення олімпіад"}]
["1.1.3","Участь у підготовці та проведенні студентських та учнівських олімпіад: перевірка робіт учасника олімпіади",303,"1.1.3 Участь у підготовці та проведенні студентських та учнівських олімпіад: перевірка робіт учасника олімпіади"]
["1.2","Участь у міжнародних Літніх школах, семінарах під патронатом МОН України, ЄС чи університетів-партнерів ХНЕУ ім. С. Кузнеця ",304,"1.2 Участь у міжнародних Літніх школах, семінарах під патронатом МОН України, ЄС чи університетів-партнерів ХНЕУ ім. С. Кузнеця "]
["1.3","Організація та проведення освітніх та наукових заходів (конференцій, круглих столів, тематичних дискусій, конкурсів наукових робіт тощо)",305,"1.3 Організація та проведення освітніх та наукових заходів (конференцій, круглих столів, тематичних дискусій, конкурсів наукових робіт тощо)"]
["2.1","Організація та проведення культурно-мистецьких, спортивних заходів для студентів у позанавчальний час ",306,"2.1 Організація та проведення культурно-мистецьких, спортивних заходів для студентів у позанавчальний час "]
["2.2","Організація та проведення культурно-мистецьких, спортивних заходів для НПП і співробітників університету",307,"2.2 Організація та проведення культурно-мистецьких, спортивних заходів для НПП і співробітників університету"]
["3.1","Виконання обов'язків куратора академічної групи",308,"3.1 Виконання обов'язків куратора академічної групи"]
["3.2","Організація і проведення консультацій та підготовка школярів до учнівських предметних олімпіад, конкурсів Малої академії наук, турнірів юних інформатиків тощо",309,"3.2 Організація і проведення консультацій та підготовка школярів до учнівських предметних олімпіад, конкурсів Малої академії наук, турнірів юних інформатиків тощо"]
["3,3","Організація програми перебування студентів іноземних країн, аспірантів (РhD), викладачів у рамках програм мобільності ",310,"3,3 Організація програми перебування студентів іноземних країн, аспірантів (РhD), викладачів у рамках програм мобільності "]
["4.1","Керівництво стажуванням слухачів закладів вищої освіти післядипломної освіти та структурних підрозділів післядипломної освіти закладів вищої освіти на підприємствах, в установах та організаціях ",311]
["4.2","Рецензування рефератів слухачів закладів вищої освіти післядипломної освіти та структурних підрозділів післядипломної освіти закладів вищої освіти",312,"4.2 Рецензування рефератів слухачів закладів вищої освіти післядипломної освіти та структурних підрозділів післядипломної освіти закладів вищої освіти"]
["4.3","Керівництво, консультування, рецензування та проведення захисту випускних робіт слухачів закладів вищої освіти післядипломної освіти та структурних підрозділів післядипломної освіти закладів вищої освіти",313,"4.3 Керівництво, консультування, рецензування та проведення захисту випускних робіт слухачів закладів вищої освіти післядипломної освіти та структурних підрозділів післядипломної освіти закладів вищої освіти"]
["4.4","Проведення випускних екзаменів слухачів закладів вищої освіти  післядипломної освіти та структурних підрозділів післядипломної освіти закладів вищої освіти  ",314,"4.4 Проведення випускних екзаменів слухачів закладів вищої освіти  післядипломної освіти та структурних підрозділів післядипломної освіти закладів вищої освіти  "]
["4.5","Керівництво програмою підвищення кваліфікації, стажуванням, педагогічних, науково-педагогічних, наукових працівників",315,"4.5 Керівництво програмою підвищення кваліфікації, стажуванням, педагогічних, науково-педагогічних, наукових працівників"]
["5.1","Проведення профорієнтаційної роботи в соціальних мережах",316,"5.1 Проведення профорієнтаційної роботи в соціальних мережах"]
["5.2","Організація та проведення екскурсій університетом",317,"5.2 Організація та проведення екскурсій університетом"]
["5.3","Участь у роботі постійних виїзних (мобільних) груп з профорієнтації",318,"5.3 Участь у роботі постійних виїзних (мобільних) груп з профорієнтації"]
["5.4","Організація співробітництва з закладами освіти, іншими установами з питань профорієнтації",319,"5.4 Організація співробітництва з закладами освіти, іншими установами з питань профорієнтації"]
["5.5","Участь у проведенні Літньої (Зимової) школи (занять та заходів) ",320,"5.5 Участь у проведенні Літньої (Зимової) школи (занять та заходів) "]
["5.6","Участі в розробці заходів та проведенні поточної роботи з формуванні іміджу університету",321,"5.6 Участі в розробці заходів та проведенні поточної роботи з формуванні іміджу університету"]
["5.7","Розроблення інформаційних матеріалів про освітні програми, кафедри, тощо (буклети, плакати, презентації тощо)",322,"5.7 Розроблення інформаційних матеріалів про освітні програми, кафедри, тощо (буклети, плакати, презентації тощо)"]
["5.8","Розроблення правил прийому до університету ",323,"5.8 Розроблення правил прийому до університету "]
["5.8.1","Участь у підготовці та проведенні пробних ЗНО, НМТ інших подібних заходах: Перевірка завдань: тестових ",324,"5.8.1 Участь у підготовці та проведенні пробних ЗНО, НМТ інших подібних заходах: Перевірка завдань: тестових "]
["5.8.2","Участь у підготовці та проведенні пробних ЗНО, НМТ інших подібних заходах: Перевірка завдань: відкритої форми з розгорнутою відповіддю",325,"5.8.2 Участь у підготовці та проведенні пробних ЗНО, НМТ інших подібних заходах: Перевірка завдань: відкритої форми з розгорнутою відповіддю"]
["5.8.3","Участь у підготовці та проведенні пробних ЗНО, НМТ інших подібних заходах: Перевірка завдань: творів",326,"5.8.3 Участь у підготовці та проведенні пробних ЗНО, НМТ інших подібних заходах: Перевірка завдань: творів"]
["5.8.4","Участь у підготовці та проведенні пробних ЗНО, НМТ інших подібних заходах: Участь в організаційному комітеті",327,"5.8.4 Участь у підготовці та проведенні пробних ЗНО, НМТ інших подібних заходах: Участь в організаційному комітеті"]
["6.1","Виконання обов’язків гаранта освітньої програми ",328,"6.1 Виконання обов’язків гаранта освітньої програми "]
["6.2","Робота в складі робочої групи з розробки та / або оновлення освітньої програми",329,"6.2 Робота в складі робочої групи з розробки та / або оновлення освітньої програми"]
["6.3.1","Виконання обов'язків заступника декана: з навчальної роботи",330,"6.3.1 Виконання обов'язків заступника декана: з навчальної роботи"]
["6.3.2","Виконання обов'язків заступника декана: за іншими видами роботи",331,"6.3.2 Виконання обов'язків заступника декана: за іншими видами роботи"]
["6.4","Керівництво кафедрою, організація роботи кафедри (завідувач кафедри)",332,"6.4 Керівництво кафедрою, організація роботи кафедри (завідувач кафедри)"]
["6.5","Виконання обов'язків відповідального секретаря (заступника відпо-відального секретаря) приймальної комісії ",333,"6.5 Виконання обов'язків відповідального секретаря (заступника відпо-відального секретаря) приймальної комісії "]
["6.6","Виконання обов'язків уповноваженої особи приймальної комісії з питань прийняття та розгляду електронних заяв",334,"6.6 Виконання обов'язків уповноваженої особи приймальної комісії з питань прийняття та розгляду електронних заяв"]
["6.7","Робота у відбіркових комісіях під час вступної кампанії ",335,"6.7 Робота у відбіркових комісіях під час вступної кампанії "]
["6.8","Відповідальний за підтримку роботи сайта кафедри, факультету, університету (розроблення контенту, розміщення інформації)",336,"6.8 Відповідальний за підтримку роботи сайта кафедри, факультету, університету (розроблення контенту, розміщення інформації)"]
["6.9","Робота в комісії з академічної доброчесності",337,"6.9 Робота в комісії з академічної доброчесності"]
["6.10","Участь у засіданнях кафедри (організація, підготовка, доповідь)",338,"6.10 Участь у засіданнях кафедри (організація, підготовка, доповідь)"]
["6.11","Координатор міжнародної програми ",339,"6.11 Координатор міжнародної програми "]
["6.12","Відповідальний за навчальну роботу на кафедрі",340,"6.12 Відповідальний за навчальну роботу на кафедрі"]
["6.13","Відповідальний за методичну роботу на кафедрі",341,"6.13 Відповідальний за методичну роботу на кафедрі"]
["6.14","Відповідальний за ПНС по кафедрі  ",342,"6.14 Відповідальний за ПНС по кафедрі  "]
["6.15","Відповідальний за організацію практик на кафедрі",343,"6.15 Відповідальний за організацію практик на кафедрі"]
["6.16","Відповідальний за наукову роботу на кафедрі",344,"6.16 Відповідальний за наукову роботу на кафедрі"]
["6.17","Відповідальний за профорієнтаційну роботу на кафедрі",345,"6.17 Відповідальний за профорієнтаційну роботу на кафедрі"]
["6.18","Робота за дорученням адміністрації ",346,"6.18 Робота за дорученням адміністрації "]
[null,null,null," "]
[null,null,null," "]
[null,null,null," "]
[null,null,null," "]
[null,null,null," "]
[null,null,null," "]
[null,null,null," "]
[null,null,null," "]
[null,null,null," "]
[null,null,null," "]
[null,null,null," "]
[null,null,null," "]
[null,null,null," "]
[null,null,null," "]
[null,null,null," "]
[null,null,null," "]
[null,null,null," "]

{"sheet":"СПИСКИ","index":8,"n_rows":30,"n_cols":11,"rows_kept":30,"cut":false,"hidden":false,"merged":[]}
["ФАКУЛЬТЕТИ","код","Декани","код","КАФЕДРИ","Завідувачі кафедр","ПОСАДИ","ВЧЕНЕ ЗВАННЯ","Примітка","Підсумковий результат ","Термін виконання"]
[]
["Міжнародних відносин і журналістики",101,"Чернишов В.В.",101,"Міжнародних економічних відносин","Отенко І.П.","Завідувач кафедри","Професор","Зовнішній сумісник","Друкована праця","I семестр"]
["Фінансів і обліку",201,"Проноза П.В.",102,"Управління соціальними комунікаціями","Яресько К.В.","Професор","Доцент","Внутрішній сумісник","Рукопис","II семестр"]
["Менеджменту і маркетингу",301,"Вовк В.А.",103,"Міжнародних відносин, політичних наук і практичної філософії","Кузь О.М.","Доцент","Старший науковий співробітник",null,null,"Протягом року"]
["Інформаційних технологій",401,"Коц Г.П.",104,"Педагогіки, іноземної філології та переводу","Погорєлова Т. Ю.","Старший викладач","Старший дослідник"]
["Економіки і права",501,"Бріль М.С.",201,"Фінансів","Журавльова І.В.","Викладач"]
["Міжнародної економіки і підприємництва",601,"Проскурніна Н.В.",202,"Митної справи і фінансових послуг","Тищенко В.Ф."]
["Підготовки іноземних громадян",701,"Єрмоленко О.А.",203,"Обліку і бізнес-консалтингу","Пилипенко А.А."]
[null,null,null,204,"Вищої математики та економіко-математичних методів","Малярець Л.М."]
[null,null,null,301,"Менеджменту, логістики та інновацій","Ястремська О.М."]
[null,null,null,302,"Менеджменту та бізнесу","Лепейко Т.І."]
[null,null,"Шталь Т.В.",303,"Маркетингу","Гриневич Л.В."]
[null,null,null,401,"Інформаційних систем","Бондаренко Д. О."]
[null,null,null,402,"Комп’ютерних систем і технологій ","Пушкар О.І."]
[null,null,null,403,"Економічної кібернетики і системного аналізу","Гур’янова Л.С."]
[null,null,null,404,"Інформатики та комп’ютерної техніки ","Удовенко С.Г."]
[null,null,null,405,"Кібербезпеки та інформаційних технологій","Старкова О.В."]
[null,null,null,501,"Соціальної економіки","Назарова Г.В."]
[null,null,null,502,"Економіки підприємства та організації бізнесу","Власенко Т.А."]
[null,null,null,503,"Правового регулювання економіки","Шинкарьов Ю. В."]
[null,null,null,504,"Державного управління, публічного адміністрування та економічної політики","Гавкалова Н.Л."]
[null,null,null,601,"Міжнародної економіки і менеджменту ","Проскурніна Н.В."]
[null,null,null,602,"Підприємництва і торгівлі","Салун М.М."]
[null,null,null,603,"Статистики і економічного прогнозування","Раєвнєва О.В."]
[null,null,null,604,"Туризму","Сущенко О.А."]
[null,null,null,605,"Готельного і ресторанного бізнесу","Давидова О.Ю."]
[null,null,null,701,"Українознавства і мовної підготовки іноземних громадян","Черемська О.С."]
[null,null,null,702,"Здорового способу життя, технологій і безпеки життєдіяльності","Івашура А.А."]
[null,null,null,703,"Іноземних мов та міжкультурної комунікації","Савицька Л.В."]

{"sheet":"Лист2","index":9,"n_rows":0,"n_cols":0,"rows_kept":0,"cut":false,"hidden":true,"merged":[]}

{"sheet":"Лист3","index":10,"n_rows":0,"n_cols":0,"rows_kept":0,"cut":false,"hidden":true,"merged":[]}

{"sheet":"Лист4","index":11,"n_rows":0,"n_cols":0,"rows_kept":0,"cut":false,"hidden":true,"merged":[]}